fUSD/lending_fUSD_20251120
["ID","MTS","AMOUNT","RATE_DAILY","PERIOD"]
[394522154,1763663954497,-466.64880964,0.0004198,120]
[394522155,1763663954534,-400.0,0.0004198,120]
[394522156,1763663954572,-500.0,0.0004198,120]
[394522157,1763663954609,-570.94,0.0004198,120]
[394522158,1763663954645,-400.0,0.0004198,120]
[394522159,1763663954680,-400.0,0.0004198,120]
[394522160,1763663954714,-400.0,0.0004198,120]
[394522161,1763663954747,-400.0,0.0004198,120]
[394522162,1763663954786,-400.0,0.0004198,120]
[394522163,1763663954821,-400.0,0.0004198,120]
[394522164,1763663954854,-400.0,0.0004198,120]
[394522165,1763663954888,-500.0,0.0004198,120]
[394522166,1763663954921,-406.2952475,0.0004198,120]
[394522167,1763663954956,-500.0,0.0004198,120]
[394522168,1763663954993,-500.0,0.0004198,120]
[394522169,1763663955031,-400.0,0.0004198,120]
[394522170,1763663955069,-500.0,0.0004198,120]
[394522171,1763663955104,-500.0,0.0004198,120]
[394522172,1763663955141,-500.0,0.0004198,120]
[394522173,1763663955175,-408.39545873,0.0004198,120]
[394522174,1763663955209,-500.0,0.0004198,120]
[394522175,1763663955243,-500.0,0.0004198,120]
[394522176,1763663955278,-500.0,0.0004198,120]
[394522177,1763663955313,-502.88730749,0.0004198,120]
[394522178,1763663955349,-463.56,0.0004198,120]
[394522179,1763663955384,-400.0,0.0004198,120]
[394522180,1763663955424,-406.92254029,0.0004198,120]
[394522181,1763663955462,-185.59381885,0.0004198,120]
[394522182,1763663955499,-500.0,0.0004198,120]
[394522183,1763663955536,-500.0,0.0004198,120]
[394522184,1763663955574,-500.0,0.0004198,120]
[394522185,1763663955614,-500.0,0.0004198,120]
[394522186,1763663955655,-500.0,0.0004198,120]
[394522187,1763663955694,-500.0,0.0004198,120]
[394522188,1763663955733,-216.43195165,0.0004198,120]
[394522189,1763663955771,-400.0,0.0004198,120]
[394522190,1763663955808,-474.67749851,0.0004198,120]
[394522191,1763663955847,-557.34,0.0004198,120]
[394522192,1763663955882,-400.0,0.0004198,120]
[394522193,1763663955918,-400.0,0.0004198,120]
[394522194,1763663955954,-400.0,0.0004198,120]
[394522195,1763663955989,-500.0,0.0004198,120]
[394522196,1763663956022,-169.69475747,0.0004198,120]
[394522197,1763663956056,-500.0,0.0004198,120]
[394522198,1763663956090,-400.0,0.0004198,120]
[394522199,1763663956123,-761.49,0.0004198,120]
[394522200,1763663956155,-761.49,0.0004198,120]
[394522201,1763663956189,-761.49,0.0004198,120]
[394522202,1763663956223,-761.49,0.0004198,120]
[394522203,1763663956258,-761.49,0.0004198,120]
[394522204,1763663956293,-761.49,0.0004198,120]
[394522205,1763663956327,-761.49,0.0004198,120]
[394522206,1763663956361,-761.49,0.0004198,120]
[394522207,1763663956399,-761.49,0.0004198,120]
[394522208,1763663956436,-761.49,0.0004198,120]
[394522209,1763663956605,-761.49,0.0004198,120]
[394522210,1763663956649,-761.49,0.0004198,120]
[394522211,1763663956688,-761.49,0.0004198,120]
[394522212,1763663956727,-761.49,0.0004198,120]
[394522213,1763663956765,-761.49,0.0004198,120]
[394522214,1763663956804,-761.49,0.0004198,120]
[394522215,1763663956841,-761.49,0.0004198,120]
[394522216,1763663956876,-761.49,0.0004198,120]
[394522217,1763663956912,-761.49,0.0004198,120]
[394522218,1763663956947,-761.49,0.0004198,120]
[394522219,1763663956987,-761.49,0.0004198,120]
[394522220,1763663957027,-519.23766834,0.0004198,120]
[394522221,1763663957066,-761.49,0.0004198,120]
[394522222,1763663957105,-761.49,0.0004198,120]
[394522223,1763663957144,-761.63505173,0.0004198,120]
[394522224,1763663957183,-500.0,0.0004198,120]
[394522225,1763663957222,-508.0905294,0.0004198,120]
[394522226,1763663957261,-413.10332669,0.0004198,120]
[394522227,1763663957298,-400.0,0.0004198,120]
[394522228,1763663957336,-500.0,0.0004198,120]
[394522229,1763663957375,-500.0,0.0004198,120]
[394522230,1763663957420,-500.0,0.0004198,120]
[394522231,1763663957460,-500.0,0.0004198,120]
[394522232,1763663957498,-500.0,0.0004198,120]
[394522233,1763663957537,-500.0,0.0004198,120]
[394522234,1763663957576,-500.0,0.0004198,120]
[394522235,1763663957614,-500.0,0.0004198,120]
[394522236,1763663957652,-500.0,0.0004198,120]
[394522237,1763663957687,-400.0,0.0004198,120]
[394522238,1763663957721,-503.36186972,0.0004198,120]
[394522239,1763663957755,-520.97586312,0.0004198,120]
[394522240,1763663957790,-400.0,0.0004198,120]
[394522241,1763663957823,-498.55753168,0.0004198,120]
[394522242,1763663957856,-460.36292468,0.0004198,120]
[394522243,1763663957889,-500.0,0.0004198,120]
[394522244,1763663957922,-500.0,0.0004198,120]
[394522245,1763663957956,-500.0,0.0004198,120]
[394522246,1763663957991,-500.0,0.0004198,120]
[394522247,1763663958025,-281.27,0.0004198,120]
[394522248,1763663958059,-400.0,0.0004198,120]
[394522249,1763663958093,-400.0,0.0004198,120]
[394522250,1763663958126,-500.0,0.0004198,120]
[394522251,1763663958159,-500.0,0.0004198,120]
[394522252,1763663958198,-500.0,0.0004198,120]
[394522253,1763663958233,-500.0,0.0004198,120]
[394522254,1763663958266,-365.50844905,0.0004198,120]
[394522255,1763663958299,-484.94794942,0.0004198,120]
[394522256,1763663958336,-500.0,0.0004198,120]
[394522257,1763663958369,-400.0,0.0004198,120]
[394522258,1763663958404,-435.35294445,0.0004198,120]
[394522259,1763663958439,-395.94559262,0.0004198,120]
[394522260,1763663958473,-500.0,0.0004198,120]
[394522261,1763663958507,-500.0,0.0004198,120]
[394522262,1763663958542,-399.08,0.0004198,120]
[394522263,1763663958578,-414.08680609,0.0004198,120]
[394522264,1763663958615,-407.14171753,0.0004198,120]
[394522265,1763663958652,-500.0,0.0004198,120]
[394522266,1763663958690,-205.5523586,0.0004198,120]
[394522267,1763663958725,-432.16434752,0.0004198,120]
[394522268,1763663958762,-197.69298507,0.0004198,120]
[394522269,1763663958796,-411.10501463,0.0004198,120]
[394522270,1763663958830,-500.0,0.0004198,120]
[394522271,1763663958864,-500.0,0.0004198,120]
[394522272,1763663958899,-477.47532387,0.0004198,120]
[394522273,1763663958933,-500.0,0.0004198,120]
[394522274,1763663958966,-510.59951114,0.0004198,120]
[394522275,1763663959002,-500.0,0.0004198,120]
[394522276,1763663959042,-557.82,0.0004198,120]
[394522277,1763663959082,-185.10463104,0.0004198,120]
[394522278,1763663959126,-500.0,0.0004198,120]
[394522279,1763663959168,-233.83,0.0004198,120]
[394522280,1763663959210,-500.0,0.0004198,120]
[394522281,1763663959249,-500.0,0.0004198,120]
[394522282,1763663959289,-400.0,0.0004198,120]
[394522283,1763663959328,-400.0,0.0004198,120]
[394522284,1763663959367,-500.0,0.0004198,120]
[394522285,1763663959408,-400.0,0.0004198,120]
[394522286,1763663959448,-400.0,0.0004198,120]
[394522287,1763663959486,-488.97,0.0004198,120]
[394522288,1763663959523,-400.0,0.0004198,120]
[394522289,1763663959558,-501.58898733,0.0004198,120]
[394522290,1763663959593,-500.0,0.0004198,120]
[394522291,1763663959631,-503.64935294,0.0004198,120]
[394522292,1763663959668,-500.0,0.0004198,120]
[394522293,1763663959704,-500.0,0.0004198,120]
[394522294,1763663959740,-500.0,0.0004198,120]
[394522295,1763663959773,-400.0,0.0004198,120]
[394522296,1763663959805,-414.84,0.0004198,120]
[394522297,1763663959841,-526.5531898,0.0004198,120]
[394522298,1763663959873,-259.09127846,0.0004198,120]
[394522299,1763663959906,-500.0,0.0004198,120]
[394522300,1763663959939,-240.09,0.0004198,120]
[394522301,1763663959972,-265.58469776,0.0004198,120]
[394522302,1763663960007,-500.0,0.0004198,120]
[394522303,1763663960044,-500.0,0.0004198,120]
[394522304,1763663960081,-202.98599027,0.0004198,120]
[394522305,1763663960115,-340.0,0.0004198,120]
[394522306,1763663960148,-493.3,0.0004198,120]
[394522307,1763663960181,-500.0,0.0004198,120]
[394522308,1763663960219,-400.0,0.0004198,120]
[394522309,1763663960254,-500.0,0.0004198,120]
[394522310,1763663960290,-400.0,0.0004198,120]
[394522311,1763663960327,-500.0,0.0004198,120]
[394522312,1763663960360,-500.0,0.0004198,120]
[394522313,1763663960399,-400.0,0.0004198,120]
[394522314,1763663960570,-500.0,0.0004198,120]
[394522315,1763663960610,-582.75,0.0004198,120]
[394522316,1763663960649,-500.0,0.0004198,120]
[394522317,1763663960686,-528.72230801,0.0004198,120]
[394522318,1763663960719,-631.21205444,0.0004198,120]
[394522319,1763663960752,-400.03993325,0.0004198,120]
[394522320,1763663960785,-415.07556645,0.0004198,120]
[394522321,1763663960821,-500.0,0.0004198,120]
[394522322,1763663960852,-649.5,0.0004198,120]
[394522323,1763663960885,-615.95,0.0004198,120]
[394522324,1763663960918,-507.11,0.0004198,120]
[394522325,1763663960953,-401.98531541,0.0004198,120]
[394522326,1763663960986,-400.0,0.0004198,120]
[394522327,1763663961020,-640.14,0.0004198,120]
[394522328,1763663961056,-400.0,0.0004198,120]
[394522329,1763663961093,-500.0,0.0004198,120]
[394522330,1763663961126,-412.41,0.0004198,120]
[394522331,1763663961159,-424.46247281,0.0004198,120]
[394522332,1763663961191,-400.0,0.0004198,120]
[394522333,1763663961225,-500.0,0.0004198,120]
[394522334,1763663961259,-539.88,0.0004198,120]
[394522335,1763663961294,-500.0,0.0004198,120]
[394522336,1763663961329,-400.0,0.0004198,120]
[394522337,1763663961363,-503.59,0.0004198,120]
[394522338,1763663961399,-500.0,0.0004198,120]
[394522339,1763663961435,-500.0,0.0004198,120]
[394522340,1763663961470,-413.72234603,0.0004198,120]
[394522341,1763663961504,-500.0,0.0004198,120]
[394522342,1763663961540,-198.26,0.0004198,120]
[394522343,1763663961577,-500.0,0.0004198,120]
[394522344,1763663961612,-500.0,0.0004198,120]
[394522345,1763663961647,-508.98478575,0.0004198,120]
[394522346,1763663961682,-500.0,0.0004198,120]
[394522347,1763663961715,-500.0,0.0004198,120]
[394522348,1763663961748,-500.0,0.0004198,120]
[394522349,1763663961781,-500.0,0.0004198,120]
[394522350,1763663961814,-500.0,0.0004198,120]
[394522351,1763663961847,-500.0,0.0004198,120]
[394522352,1763663961880,-500.0,0.0004198,120]
[394522353,1763663961913,-409.44334884,0.0004198,120]
[394522354,1763663961948,-500.0,0.0004198,120]
[394522355,1763663961983,-500.0,0.0004198,120]
[394522356,1763663962018,-358.05,0.0004198,120]
[394522357,1763663962052,-500.0,0.0004198,120]
[394522358,1763663962085,-323.27106091,0.0004198,120]
[394522359,1763663962118,-400.0,0.0004198,120]
[394522360,1763663962152,-426.79094773,0.0004198,120]
[394522361,1763663962186,-500.0,0.0004198,120]
[394522362,1763663962221,-232.32,0.0004198,120]
[394522363,1763663962259,-236.72738411,0.0004198,120]
[394522364,1763663962296,-500.0,0.0004198,120]
[394522365,1763663962332,-500.0,0.0004198,120]
[394522366,1763663962371,-500.0,0.0004198,120]
[394522367,1763663962410,-500.0,0.0004198,120]
[394522368,1763663962448,-542.81170426,0.0004198,120]
[394522369,1763663962485,-500.0,0.0004198,120]
[394522370,1763663962521,-427.36,0.0004198,120]
[394522371,1763663962558,-500.0,0.0004198,120]
[394522372,1763663962594,-349.01,0.0004198,120]
[394522373,1763663962631,-618.59951005,0.0004198,120]
[394522374,1763663962668,-476.69789311,0.0004198,120]
[394522375,1763663962701,-500.0,0.0004198,120]
[394522376,1763663962737,-504.10881178,0.0004198,120]
[394522377,1763663962770,-500.0,0.0004198,120]
[394522378,1763663962803,-400.0,0.0004198,120]
[394522379,1763663962835,-500.0,0.0004198,120]
[394522380,1763663962871,-500.0,0.0004198,120]
[394522381,1763663962903,-186.55494655,0.0004198,120]
[394522382,1763663962936,-406.12639807,0.0004198,120]
[394522383,1763663962969,-516.73292826,0.0004198,120]
[394522384,1763663963002,-500.0,0.0004198,120]
[394522385,1763663963034,-500.0,0.0004198,120]
[394522386,1763663963068,-500.0,0.0004198,120]
[394522387,1763663963103,-500.0,0.0004198,120]
[394522388,1763663963139,-500.0,0.0004198,120]
[394522389,1763663963173,-500.0,0.0004198,120]
[394522390,1763663963208,-218.3,0.0004198,120]
[394522391,1763663963243,-500.0,0.0004198,120]
[394522392,1763663963276,-463.59628242,0.0004198,120]
[394522393,1763663963311,-460.36117707,0.0004198,120]
[394522394,1763663963347,-603.08,0.0004198,120]
[394522395,1763663963383,-178.51324647,0.0004198,120]
[394522396,1763663963424,-400.0,0.0004198,120]
[394522397,1763663963463,-500.0,0.0004198,120]
[394522398,1763663963503,-407.07,0.0004198,120]
[394522399,1763663963541,-402.90283054,0.0004198,120]
[394522400,1763663963579,-400.0,0.0004198,120]
[394522401,1763663963619,-644.62,0.0004198,120]
[394522402,1763663963657,-500.0,0.0004198,120]
[394522403,1763663963692,-400.0,0.0004198,120]
[394522404,1763663963729,-414.82,0.0004198,120]
[394522405,1763663963765,-500.0,0.0004198,120]
[394522406,1763663963802,-500.0,0.0004198,120]
[394522407,1763663963841,-500.0,0.0004198,120]
[394522408,1763663963881,-500.0,0.0004198,120]
[394522409,1763663963918,-530.20660795,0.0004198,120]
[394522410,1763663963956,-617.68989486,0.0004198,120]
[394522411,1763663963992,-500.0,0.0004198,120]
[394522412,1763663964028,-500.0,0.0004198,120]
[394522413,1763663964064,-500.0,0.0004198,120]
[394522414,1763663964101,-500.0,0.0004198,120]
[394522415,1763663964137,-500.0,0.0004198,120]
[394522416,1763663964173,-500.0,0.0004198,120]
[394522417,1763663964344,-500.0,0.0004198,120]
[394522418,1763663964384,-540.27890118,0.0004198,120]
[394522419,1763663964428,-224.07,0.0004198,120]
[394522420,1763663964469,-519.98835898,0.0004198,120]
[394522421,1763663964506,-500.0,0.0004198,120]
[394522422,1763663964541,-500.0,0.0004198,120]
[394522423,1763663964579,-317.75315664,0.0004198,120]
[394522424,1763663964614,-404.63379172,0.0004198,120]
[394522425,1763663964652,-409.80398636,0.0004198,120]
[394522426,1763663964689,-500.0,0.0004198,120]
[394522427,1763663964725,-226.37646982,0.0004198,120]
[394522428,1763663964759,-500.0,0.0004198,120]
[394522429,1763663964794,-212.05063314,0.0004198,120]
[394522430,1763663964832,-500.0,0.0004198,120]
[394522431,1763663964867,-400.0,0.0004198,120]
[394522432,1763663964906,-424.13507111,0.0004198,120]
[394522433,1763663964944,-500.0,0.0004198,120]
[394522434,1763663964981,-500.0,0.0004198,120]
[394522435,1763663965017,-407.87049785,0.0004198,120]
[394522436,1763663965053,-500.0,0.0004198,120]
[394522437,1763663965088,-400.0,0.0004198,120]
[394522438,1763663965123,-500.0,0.0004198,120]
[394522439,1763663965157,-500.0,0.0004198,120]
[394522440,1763663965192,-500.0,0.0004198,120]
[394522441,1763663965227,-500.0,0.0004198,120]
[394522442,1763663965261,-500.0,0.0004198,120]
[394522443,1763663965296,-500.0,0.0004198,120]
[394522444,1763663965329,-400.0,0.0004198,120]
[394522445,1763663965363,-281.56394524,0.0004198,120]
[394522446,1763663965397,-404.35063091,0.0004198,120]
[394522447,1763663965433,-500.0,0.0004198,120]
[394522448,1763663965470,-500.0,0.0004198,120]
[394522449,1763663965507,-500.0,0.0004198,120]
[394522450,1763663965542,-552.27672447,0.0004198,120]
[394522451,1763663965578,-406.94718551,0.0004198,120]
[394522452,1763663965613,-500.0,0.0004198,120]
[394522453,1763663965651,-500.0,0.0004198,120]
[394522454,1763663965683,-500.0,0.0004198,120]
[394522455,1763663965718,-224.65398722,0.0004198,120]
[394522456,1763663965751,-500.0,0.0004198,120]
[394522457,1763663965784,-579.16,0.0004198,120]
[394522458,1763663965816,-500.0,0.0004198,120]
[394522459,1763663965849,-500.0,0.0004198,120]
[394522460,1763663965882,-500.0,0.0004198,120]
[394522461,1763663965914,-416.15620773,0.0004198,120]
[394522462,1763663965946,-500.0,0.0004198,120]
[394522463,1763663965980,-500.0,0.0004198,120]
[394522464,1763663966012,-467.58437238,0.0004198,120]
[394522465,1763663966044,-500.0,0.0004198,120]
[394522466,1763663966076,-500.0,0.0004198,120]
[394522467,1763663966109,-186.099384,0.0004198,120]
[394522468,1763663966142,-500.0,0.0004198,120]
[394522469,1763663966173,-500.0,0.0004198,120]
[394522470,1763663966206,-150.45862344,0.0004198,120]
[394522471,1763663966239,-385.95779585,0.0004198,120]
[394522472,1763663966271,-500.0,0.0004198,120]
[394522473,1763663966303,-494.45468588,0.0004198,120]
[394522474,1763663966337,-416.95586616,0.0004198,120]
[394522475,1763663966371,-434.38977425,0.0004198,120]
[394522476,1763663966409,-500.0,0.0004198,120]
[394522477,1763663966446,-500.0,0.0004198,120]
[394522478,1763663966481,-400.0,0.0004198,120]
[394522479,1763663966517,-400.0,0.0004198,120]
[394522480,1763663966550,-500.0,0.0004198,120]
[394522481,1763663966583,-500.0,0.0004198,120]
[394522482,1763663966616,-400.0,0.0004198,120]
[394522483,1763663966650,-500.0,0.0004198,120]
[394522484,1763663966684,-500.0,0.0004198,120]
[394522485,1763663966717,-500.0,0.0004198,120]
[394522486,1763663966750,-500.0,0.0004198,120]
[394522487,1763663966786,-571.36241421,0.0004198,120]
[394522488,1763663966820,-503.9912927,0.0004198,120]
[394522489,1763663966861,-582.19646977,0.0004198,120]
[394522490,1763663966895,-500.0,0.0004198,120]
[394522491,1763663966926,-191.06938647,0.0004198,120]
[394522492,1763663966958,-400.0,0.0004198,120]
[394522493,1763663966989,-509.06293082,0.0004198,120]
[394522494,1763663967022,-513.11840782,0.0004198,120]
[394522495,1763663967054,-500.0,0.0004198,120]
[394522496,1763663967087,-427.9,0.0004198,120]
[394522497,1763663967120,-500.0,0.0004198,120]
[394522498,1763663967155,-500.0,0.0004198,120]
[394522499,1763663967190,-500.0,0.0004198,120]
[394522500,1763663967224,-400.0,0.0004198,120]
[394522501,1763663967259,-337.01650862,0.0004198,120]
[394522502,1763663967292,-500.0,0.0004198,120]
[394522503,1763663967328,-500.0,0.0004198,120]
[394522504,1763663967360,-240.6100482,0.0004198,120]
[394522505,1763663967397,-500.0,0.0004198,120]
[394522506,1763663967432,-400.0,0.0004198,120]
[394522507,1763663967469,-500.0,0.0004198,30]
[394522508,1763663967505,-500.0,0.0004198,30]
[394522509,1763663967539,-500.0,0.0004198,30]
[394522510,1763663967575,-500.0,0.0004198,30]
[394522511,1763663967608,-500.0,0.0004198,120]
[394522512,1763663967640,-500.0,0.0004198,30]
[394522513,1763663967672,-500.0,0.0004198,120]
[394522514,1763663967703,-500.0,0.0004198,30]
[394522515,1763663967734,-512.33002362,0.0004198,120]
[394522516,1763663967766,-522.43692877,0.0004198,30]
[394522517,1763663967797,-500.0,0.0004198,120]
[394522518,1763663967829,-500.0,0.0004198,120]
[394522519,1763663967860,-467.33379526,0.0004198,120]
[394522520,1763663967892,-364.02,0.0004198,120]
[394522521,1763663968046,-500.0,0.0004198,120]
[394522522,1763663968094,-400.0,0.0004198,120]
[394522523,1763663968136,-500.0,0.0004198,120]
[394522524,1763663968170,-562.69,0.0004198,120]
[394522525,1763663968205,-400.0,0.0004198,120]
[394522526,1763663968239,-430.63401794,0.0004198,120]
[394522527,1763663968275,-500.0,0.0004198,120]
[394522528,1763663968313,-400.0,0.0004198,120]
[394522529,1763663968355,-400.0,0.0004198,120]
[394522530,1763663968395,-400.0,0.0004198,120]
[394522531,1763663968433,-500.0,0.0004198,120]
[394522532,1763663968470,-422.61141288,0.0004198,120]
[394522533,1763663968507,-500.0,0.0004198,120]
[394522534,1763663968543,-400.0,0.0004198,120]
[394522535,1763663968582,-500.0,0.0004198,120]
[394522536,1763663968621,-416.62920117,0.0004198,120]
[394522537,1763663968659,-539.33,0.0004198,120]
[394522538,1763663968697,-400.0,0.0004198,120]
[394522539,1763663968736,-500.0,0.0004198,120]
[394522540,1763663968775,-442.17,0.0004198,120]
[394522541,1763663968813,-500.0,0.0004198,120]
[394522542,1763663968853,-400.0,0.0004198,120]
[394522543,1763663968892,-500.0,0.0004198,120]
[394522544,1763663968935,-432.98014992,0.0004198,120]
[394522545,1763663968997,-642.67,0.0004198,120]
[394522546,1763663969036,-500.0,0.0004198,120]
[394522547,1763663969074,-400.0,0.0004198,120]
[394522548,1763663969114,-400.0,0.0004198,120]
[394522549,1763663969152,-500.0,0.0004198,120]
[394522550,1763663969198,-248.83692013,0.0004198,120]
[394522551,1763663969234,-339.70375431,0.0004198,120]
[394522552,1763663969272,-500.0,0.0004198,120]
[394522553,1763663969310,-265.29209406,0.0004198,120]
[394522554,1763663969351,-432.46954792,0.0004198,120]
[394522555,1763663969390,-400.0,0.0004198,120]
[394522556,1763663969434,-500.0,0.0004198,120]
[394522557,1763663969471,-358.72754102,0.0004198,120]
[394522558,1763663969507,-400.0,0.0004198,120]
[394522559,1763663969542,-408.43725401,0.0004198,120]
[394522560,1763663969583,-197.22712095,0.0004198,120]
[394522561,1763663969622,-500.0,0.0004198,120]
[394522562,1763663969663,-500.0,0.0004198,120]
[394522563,1763663969700,-500.0,0.0004198,120]
[394522564,1763663969736,-500.0,0.0004198,120]
[394522565,1763663969771,-400.0,0.0004198,120]
[394522566,1763663969806,-400.0,0.0004198,120]
[394522567,1763663969841,-500.0,0.0004198,120]
[394522568,1763663969876,-500.0,0.0004198,120]
[394522569,1763663969913,-334.36553555,0.0004198,120]
[394522570,1763663969952,-500.0,0.0004198,120]
[394522571,1763663969985,-400.0,0.0004198,120]
[394522572,1763663970033,-156.02332051,0.0004198,120]
[394522573,1763663970069,-500.0,0.0004198,120]
[394522574,1763663970104,-500.0,0.0004198,120]
[394522575,1763663970136,-298.26,0.0004198,120]
[394522576,1763663970169,-500.0,0.0004198,120]
[394522577,1763663970200,-500.0,0.0004198,120]
[394522578,1763663970234,-500.0,0.0004198,120]
[394522579,1763663970267,-500.0,0.0004198,120]
[394522580,1763663970299,-403.348312,0.0004198,120]
[394522581,1763663970333,-422.37,0.0004198,120]
[394522582,1763663970367,-433.56868424,0.0004198,120]
[394522583,1763663970402,-500.0,0.0004198,120]
[394522584,1763663970441,-500.0,0.0004198,120]
[394522585,1763663970475,-501.568691,0.0004198,120]
[394522586,1763663970510,-500.0,0.0004198,120]
[394522587,1763663970551,-185.23378871,0.0004198,120]
[394522588,1763663970597,-500.0,0.0004198,120]
[394522589,1763663970636,-500.0,0.0004198,120]
[394522590,1763663970673,-318.10533395,0.0004198,120]
[394522591,1763663970708,-422.82592717,0.0004198,120]
[394522592,1763663970743,-498.73176601,0.0004198,120]
[394522593,1763663970777,-500.0,0.0004198,120]
[394522594,1763663970810,-500.0,0.0004198,120]
[394522595,1763663970843,-642.72078642,0.0004198,120]
[394522596,1763663970876,-500.0,0.0004198,120]
[394522597,1763663970911,-300.0,0.0004198,120]
[394522598,1763663970947,-400.88425868,0.0004198,120]
[394522599,1763663970984,-471.72842324,0.0004198,120]
[394522600,1763663971019,-477.68,0.0004198,120]
[394522601,1763663971054,-500.0,0.0004198,120]
[394522602,1763663971086,-409.99461702,0.0004198,120]
[394522603,1763663971122,-500.0,0.0004198,120]
[394522604,1763663971155,-404.36907363,0.0004198,120]
[394522605,1763663971189,-400.0,0.0004198,120]
[394522606,1763663971222,-400.0,0.0004198,120]
[394522607,1763663971255,-500.0,0.0004198,120]
[394522608,1763663971288,-500.0,0.0004198,120]
[394522609,1763663971321,-500.0,0.0004198,120]
[394522610,1763663971358,-500.0,0.0004198,120]
[394522611,1763663971396,-151.0,0.0004198,50]
[394522612,1763663971440,-500.0,0.0004198,120]
[394522613,1763663971478,-500.0,0.0004198,120]
[394522614,1763663971514,-500.0,0.0004198,120]
[394522615,1763663971550,-323.57370126,0.0004198,120]
[394522616,1763663971586,-227.63866171,0.0004198,120]
[394522617,1763663971620,-151.0,0.0004198,50]
[394522618,1763663971654,-500.0,0.0004198,120]
[394522619,1763663971686,-440.36090596,0.0004198,120]
[394522620,1763663971720,-500.0,0.0004198,120]
[394522621,1763663971756,-500.0,0.0004198,120]
[394522622,1763663971792,-151.0,0.0004198,50]
[394522623,1763663971830,-400.0,0.0004198,120]
[394522624,1763663971865,-500.0,0.0004198,120]
[394522625,1763663971899,-151.0,0.0004198,50]
[394522626,1763663972131,-557.44,0.0004198,120]
[394522627,1763663972173,-400.0,0.0004198,120]
[394522628,1763663972212,-151.0,0.0004198,50]
[394522629,1763663972251,-400.0,0.0004198,120]
[394522630,1763663972294,-151.0,0.0004198,50]
[394522631,1763663972342,-151.0,0.0004198,50]
[394522632,1763663972390,-500.0,0.0004198,120]
[394522633,1763663972433,-205.09694772,0.0004198,120]
[394522634,1763663972474,-400.0,0.0004198,120]
[394522635,1763663972514,-500.0,0.0004198,120]
[394522636,1763663972555,-500.0,0.0004198,120]
[394522637,1763663972592,-500.0,0.0004198,120]
[394522638,1763663972631,-500.0,0.0004198,120]
[394522639,1763663972671,-500.0,0.0004198,120]
[394522640,1763663972709,-500.0,0.0004198,120]
[394522641,1763663972745,-400.0,0.0004198,120]
[394522642,1763663972783,-500.0,0.0004198,120]
[394522643,1763663972819,-500.0,0.0004198,120]
[394522644,1763663972856,-500.0,0.0004198,120]
[394522645,1763663972890,-400.0,0.0004198,120]
[394522646,1763663972931,-325.55251559,0.0004198,120]
[394522647,1763663972968,-500.0,0.0004198,120]
[394522648,1763663973002,-500.0,0.0004198,120]
[394522649,1763663973038,-500.0,0.0004198,120]
[394522650,1763663973070,-500.0,0.0004198,120]
[394522651,1763663973124,-303.74647563,0.0004198,120]
[394522652,1763663973163,-151.0,0.0004198,50]
[394522653,1763663973201,-534.22311788,0.0004198,120]